bitfinex-derivatives/quotes_ETHF0:USTF0_20230902
["timestamp","ask_amount","ask_price","bid_price","bid_amount"]
[1693687231987,7.07141248,1635.3,1635.2,1.59795711]
[1693687232188,7.07141248,1635.3,1635.1,1.59795711]
[1693687232189,12.59241248,1635.3,1635.1,1.59795711]
[1693687232395,2.86716352,1635.2,1635.1,1.59795711]
[1693687232790,8.38816352,1635.2,1635.1,1.59795711]
[1693687232993,8.39422426,1635.2,1635.1,1.59795711]
[1693687233389,8.39422426,1635.2,1635.0,3.99489278]
[1693687233698,5.27116325,1635.2,1635.1,1.59795711]
[1693687233892,10.79216325,1635.2,1635.1,1.59795711]
[1693687234189,8.39422426,1635.2,1635.1,1.59795711]
[1693687234598,10.79216325,1635.2,1635.1,1.59795711]
[1693687234992,13.06209973,1635.2,1635.1,1.59795711]
[1693687235596,13.06209973,1635.2,1635.1,2.39693567]
[1693687235794,13.06209973,1635.2,1635.1,4.00005238]
[1693687236199,13.06209973,1635.2,1635.1,1.60311671]
[1693687236497,13.06209973,1635.2,1635.1,4.00005238]
[1693687236699,13.06209973,1635.2,1635.1,1.60311671]
[1693687240201,10.66416074,1635.2,1635.1,1.60311671]
[1693687240995,10.66416074,1635.2,1635.1,4.00005238]
[1693687241200,10.66416074,1635.2,1635.1,1.60311671]
[1693687241594,10.66416074,1635.2,1635.1,4.00005238]
[1693687243799,13.06209973,1635.2,1635.0,4.00005238]
[1693687244001,13.06209973,1635.2,1635.0,1.60311671]
[1693687244202,13.06209973,1635.2,1635.0,4.00005238]
[1693687246908,13.06209973,1635.2,1635.1,1.60311671]
[1693687247307,13.06209973,1635.2,1635.0,4.00005238]
[1693687247509,10.66416074,1635.2,1635.1,1.60311671]
[1693687250509,10.66416074,1635.2,1635.0,4.00005238]
[1693687250710,13.06209973,1635.2,1635.0,4.00005238]
[1693687250915,10.66416074,1635.2,1635.1,2.39693567]
[1693687259020,10.66416074,1635.2,1635.1,1.60175164]
[1693687259219,13.06209973,1635.2,1635.1,1.60175164]
[1693687266121,10.66416074,1635.2,1635.1,2.39693567]
[1693687271235,10.66416074,1635.2,1635.0,3.19591423]
[1693687271927,10.66416074,1635.2,1635.1,3.19591423]
[1693687274237,13.06209973,1635.2,1635.1,3.19591423]
[1693687278246,13.36805171,1635.2,1635.1,3.19591423]
[1693687278443,13.36805171,1635.2,1635.0,3.99489279]
[1693687278644,13.06209973,1635.2,1635.1,3.21057942]
[1693687278843,13.36805171,1635.2,1635.1,3.21057942]
[1693687281146,14.16736471,1635.2,1635.1,3.21057942]
[1693687288849,14.6671444,1635.2,1635.1,3.21057942]
[1693687289243,13.87905707,1635.2,1635.1,3.99489279]
[1693687296354,14.6671444,1635.2,1635.1,3.21075705]
[1693687303364,13.07342477,1635.2,1635.1,3.99489279]
[1693687311367,14.16736425,1635.2,1635.1,3.21081347]
[1693687318275,13.37942112,1635.2,1635.1,3.99489279]
[1693687322283,13.0734696,1635.2,1635.1,3.99489279]
[1693687326384,13.37941991,1635.2,1635.0,3.99489279]
[1693687326588,1.60617309,1635.1,1635.0,3.99489279]
[1693687326789,2.10791381,1635.1,1635.0,3.99489279]
[1693687326984,2.10791381,1635.1,1634.9,5.46682484]
[1693687327185,2.11396584,1635.1,1634.9,5.46682484]
[1693687331293,2.86716352,1635.0,1634.9,5.46682484]
[1693687332097,2.87320683,1635.0,1634.9,5.46682484]
[1693687333502,4.47937992,1635.0,1634.9,5.46682484]
[1693687339902,4.47937992,1635.0,1634.9,9.48018876]
[1693687341505,5.28251569,1635.0,1634.9,9.48018876]
[1693687344715,2.41535217,1635.0,1634.9,9.48018876]
[1693687349319,5.28251569,1635.0,1634.9,9.48018876]
[1693687349517,4.47916147,1635.0,1634.9,9.48018876]
[1693687351719,4.54036147,1635.0,1634.9,9.48018876]
[1693687355420,1.67319795,1635.0,1634.9,9.48018876]
[1693687356020,4.54036147,1635.0,1634.9,9.48018876]
[1693687356518,2.93440683,1635.0,1634.9,5.46682484]
[1693687358021,0.06724331,1635.0,1634.9,5.46682484]
[1693687358523,7.20479536,1635.1,1634.9,5.52792484]
[1693687358924,7.20479536,1635.1,1635.0,1.26691756]
[1693687359323,10.07195888,1635.1,1635.0,1.26691756]
[1693687360423,10.07195888,1635.1,1634.9,5.52792484]
[1693687360924,10.07195888,1635.1,1634.9,6.7948424]
[1693687363631,4.0764635,1635.0,1634.9,10.8075679]
[1693687367035,4.08227438,1635.0,1634.9,10.8075679]
[1693687367931,4.08227438,1635.0,1634.9,9.54065034]
[1693687369537,1.67296552,1635.0,1634.9,9.54065034]
[1693687369933,1.67296552,1635.0,1634.9,10.8075679]
[1693687371637,0.06701088,1635.0,1634.9,6.7948424]
[1693687378655,1.67296552,1635.0,1634.9,10.80867732]
[1693687386958,0.06701088,1635.0,1634.9,6.7948424]
[1693687392962,0.06701088,1635.0,1634.9,6.1592543]
[1693687396468,0.06701088,1635.0,1634.9,6.64382091]
[1693687401971,4.08227438,1635.0,1634.9,10.65713899]
[1693687409075,0.06701088,1635.0,1634.9,6.64382091]
[1693687412077,0.06701088,1635.0,1634.9,4.15812091]
[1693687424284,1.67296552,1635.0,1634.9,8.17120823]
[1693687430291,4.08227438,1635.0,1634.9,8.17120823]
[1693687430492,4.08227438,1635.0,1634.9,6.90429067]
[1693687431094,4.08227438,1635.0,1634.9,8.17120823]
[1693687431292,4.08227438,1635.0,1634.9,4.15812091]
[1693687431293,0.06701088,1635.0,1634.9,4.15812091]
[1693687436297,0.06701088,1635.0,1634.9,2.89120335]
[1693687436496,11.87321086,1635.0,1634.9,3.03728975]
[1693687436691,10.26725622,1635.0,1634.9,3.03728975]
[1693687437397,10.26725622,1635.0,1634.9,3.21055249]
[1693687439394,11.05519935,1635.0,1634.9,3.21055249]
[1693687439597,11.36119378,1635.0,1634.9,2.40742821]
[1693687440199,11.36119378,1635.0,1634.9,4.01215914]
[1693687443401,11.36119378,1635.0,1634.9,1.60473093]
[1693687446601,9.46219317,1635.0,1634.9,2.40742821]
[1693687454511,10.57031404,1635.0,1634.9,1.60328195]
[1693687454906,11.36119732,1635.0,1634.8,4.07181016]
[1693687455109,12.3974105,1634.9,1634.8,4.07181016]
[1693687456211,12.40321266,1634.9,1634.8,4.07181016]
[1693687460221,9.99766447,1634.9,1634.8,4.07181016]
[1693687460621,12.40321266,1634.9,1634.8,4.07181016]
[1693687460922,9.99766447,1634.9,1634.8,4.07181016]
[1693687461221,12.40321266,1634.9,1634.8,4.07181016]
[1693687461609,8.39396568,1634.9,1634.8,3.27165249]
[1693687469727,12.40321266,1634.9,1634.8,4.06930175]
[1693687470122,10.79951387,1634.9,1634.8,4.06930175]
[1693687470428,10.79951387,1634.9,1634.8,1.6643807]
[1693687472325,10.79951387,1634.9,1634.8,4.06930175]
[1693687472918,10.79951387,1634.9,1634.8,1.6643807]
[1693687473525,10.79951387,1634.9,1634.8,4.06930175]
[1693687476627,9.99825396,1634.9,1634.8,3.27165249]
[1693687481530,12.40380215,1634.9,1634.8,3.27165249]
[1693687482432,10.79951387,1634.9,1634.8,0.0611]
[1693687483330,10.79951387,1634.9,1634.8,4.06915967]
[1693687484333,10.79951387,1634.9,1634.8,0.0611]
[1693687484734,10.79951387,1634.9,1634.8,3.27215611]
[1693687491638,11.89722183,1634.9,1634.8,2.46945673]
[1693687493036,11.89722183,1634.9,1634.8,2.40835673]
[1693687499134,12.69653483,1634.9,1634.8,2.40835673]
[1693687499441,8.69996984,1634.9,1634.8,2.40835673]
[1693687499643,12.69653483,1634.9,1634.8,2.40835673]
[1693687499843,11.10882665,1634.9,1634.8,3.21105611]
[1693687500343,11.91177892,1634.9,1634.8,3.21105611]
[1693687500544,8.69996984,1634.9,1634.8,3.21105611]
[1693687501546,11.10885696,1634.9,1634.8,3.21105611]
[1693687501943,8.69996984,1634.9,1634.8,3.21105611]
[1693687502145,11.10885717,1634.9,1634.8,3.21105611]
[1693687506949,11.91177892,1634.9,1634.8,4.0110873]
[1693687507148,18.81703084,1634.9,1634.8,1.12057598]
[1693687507349,2.26993648,1634.8,1634.6,0.0611]
[1693687507545,12.70905855,1634.7,1634.6,0.0611]
[1693687507748,18.8302538,1634.7,1634.6,0.0611]
[1693687507953,8.69416768,1634.7,1634.6,0.0611]
[1693687508147,12.71484471,1634.7,1634.6,0.0611]
[1693687508647,8.69995384,1634.7,1634.6,0.0611]
[1693687508951,11.90959709,1634.7,1634.6,0.0611]
[1693687513957,12.40308154,1634.7,1634.6,0.0611]
[1693687515456,9.99760242,1634.7,1634.6,0.0611]
[1693687519153,10.49803095,1634.7,1634.6,0.0611]
[1693687522459,12.90351007,1634.7,1634.6,0.0611]
[1693687522858,10.49803095,1634.7,1634.6,0.0611]
[1693687524161,12.90351007,1634.7,1634.6,0.0611]
[1693687524359,10.49803095,1634.7,1634.6,0.0611]
[1693687525661,12.90351007,1634.7,1634.6,0.0611]
[1693687527364,10.49803095,1634.7,1634.6,0.0611]
[1693687528964,11.60591526,1634.7,1634.6,0.0611]
[1693687529564,8.43269381,1634.7,1634.6,1.32801756]
[1693687530370,11.29985733,1634.7,1634.6,0.0611]
[1693687537069,10.49774517,1634.7,1634.6,2.46775238]
[1693687537669,10.49774517,1634.7,1634.6,3.73466994]
[1693687537888,10.49774517,1634.7,1634.6,2.46775238]
[1693687544177,11.60589728,1634.7,1634.6,0.0611]
[1693687545276,9.20041816,1634.7,1634.6,0.0611]
[1693687545574,11.60724439,1634.7,1634.6,0.0611]
[1693687545775,9.20041816,1634.7,1634.6,0.0611]
[1693687547471,12.41006141,1634.7,1634.6,0.0611]
[1693687548278,9.20041816,1634.7,1634.6,0.0611]
[1693687548478,12.41006141,1634.7,1634.6,0.0611]
[1693687549774,12.41006141,1634.7,1634.6,2.46775238]
[1693687552078,11.30242693,1634.7,1634.6,3.27215611]
[1693687559285,12.41006246,1634.7,1634.6,2.46807345]
[1693687567083,11.30322266,1634.7,1634.6,0.0611]
[1693687567384,11.30322266,1634.7,1634.6,3.27215611]
[1693687571793,11.60926363,1634.7,1634.6,3.27215611]
[1693687574397,12.41006243,1634.7,1634.6,3.27215611]
[1693687582306,13.21531005,1634.7,1634.6,2.46857447]
[1693687589417,9.20041918,1634.7,1634.6,3.27215611]
[1693687590018,12.41360072,1634.7,1634.6,3.27215611]
[1693687590826,9.20041918,1634.7,1634.6,3.27215611]
[1693687593826,12.41360072,1634.7,1634.6,3.27215611]
[1693687597329,9.20041918,1634.7,1634.6,2.46865447]
[1693687598025,13.21531005,1634.7,1634.6,2.46865447]
[1693687601732,9.20041918,1634.7,1634.6,2.46865447]
[1693687603132,13.21531005,1634.7,1634.6,2.46865447]
[1693687604531,9.20041918,1634.7,1634.6,3.27215611]
[1693687606833,12.41359621,1634.7,1634.6,3.27215611]
[1693687607428,9.20041918,1634.7,1634.6,3.27215611]
[1693687607927,9.20041918,1634.7,1634.6,4.53907367]
[1693687612432,13.21531005,1634.7,1634.6,3.73581038]
[1693687613031,13.21531005,1634.7,1634.6,2.46889282]
[1693687619434,12.41355299,1634.7,1634.6,3.27215611]
[1693687620540,12.41355299,1634.7,1634.6,4.53907367]
[1693687622643,12.41355299,1634.7,1634.6,3.27215611]
[1693687627546,19.33622038,1634.7,1634.6,2.46900286]
[1693687628145,19.33622038,1634.7,1634.6,3.73592042]
[1693687629045,19.33622038,1634.7,1634.6,2.46900286]
[1693687629440,13.21531005,1634.7,1634.6,2.46900286]
[1693687634552,12.41348923,1634.7,1634.6,3.27215611]
[1693687641154,9.54632571,1634.7,1634.6,4.53907367]
[1693687641851,12.41348923,1634.7,1634.6,4.53907367]
[1693687647157,12.41348923,1634.7,1634.6,3.27215611]
[1693687649757,19.33620076,1634.7,1634.6,2.46906663]
[1693687654461,19.33620076,1634.7,1634.6,3.73598419]
[1693687654665,10.34814653,1634.7,1634.6,3.73598419]
[1693687656368,13.21531005,1634.7,1634.6,3.73598419]
[1693687657569,10.34814653,1634.7,1634.6,3.73598419]
[1693687657769,9.54647885,1634.7,1634.6,4.53907367]
[1693687658272,12.41364237,1634.7,1634.6,4.53907367]
[1693687659071,12.41364237,1634.7,1634.6,3.27215611]
[1693687661880,9.54647885,1634.7,1634.6,4.53907367]
[1693687662880,12.41364237,1634.7,1634.6,4.53907367]
[1693687668688,12.41364237,1634.7,1634.6,5.02567165]
[1693687670690,12.41364237,1634.7,1634.6,4.53907367]
[1693687671693,12.41364237,1634.7,1634.6,3.27215611]
[1693687672593,12.41364237,1634.7,1634.6,4.53907367]
[1693687672889,16.46907065,1634.7,1634.6,3.73602653]
[1693687673287,19.33623417,1634.7,1634.6,3.73602653]
[1693687675296,19.33623417,1634.7,1634.6,2.46910897]
[1693687678599,19.33623417,1634.7,1634.6,3.73602653]
[1693687679100,19.03183807,1634.7,1634.6,3.73600338]
[1693687679296,19.33788403,1634.7,1634.6,3.73600338]
[1693687679996,12.41365481,1634.7,1634.6,4.53866533]
[1693687680195,9.54649129,1634.7,1634.6,4.53866533]
[1693687686798,10.34980117,1634.7,1634.6,3.7359489]
[1693687688205,10.34401501,1634.7,1634.6,3.7359489]
[1693687688401,9.84358648,1634.7,1634.6,4.22098286]
[1693687688604,2.40968389,1634.7,1634.6,11.34736123]
[1693687688901,1.60639285,1634.8,1634.7,0.0611]
[1693687689110,1.60639285,1634.8,1634.7,10.05963347]
[1693687689400,1.61338008,1634.8,1634.7,10.05963347]
[1693687689804,1.61338008,1634.8,1634.7,9.25647981]
[1693687690805,0.00698723,1634.8,1634.7,9.25647981]
[1693687691613,0.00698723,1634.8,1634.7,9.25552772]
[1693687693810,0.00698723,1634.8,1634.7,11.78882772]
[1693687694213,4.01607674,1635.0,1634.9,0.0611]
[1693687694411,4.01607674,1635.0,1634.9,7.18313617]
[1693687694715,1.60639285,1635.0,1634.9,8.45005373]
[1693687694915,15.40139285,1635.1,1635.0,0.0611]
[1693687695109,1.60639285,1635.1,1635.0,1.66187083]
[1693687695309,1.61341406,1635.1,1635.0,1.66187083]
[1693687695507,0.00702121,1635.1,1635.0,2.46265426]
[1693687696010,0.00702121,1635.1,1635.0,4.95015426]
[1693687696213,4.49581912,1635.2,1635.1,0.0611]
[1693687696417,4.49581912,1635.2,1635.1,1.6612031]
[1693687696715,4.49581912,1635.2,1635.1,1.32801756]
[1693687701819,12.88398264,1635.2,1635.1,0.0611]
[1693687702018,14.7966202,1635.2,1635.1,0.0611]
[1693687707226,14.80365145,1635.2,1635.1,0.0611]
[1693687710327,13.68546419,1635.2,1635.1,0.0611]
[1693687717128,14.80365674,1635.2,1635.1,0.0611]
[1693687720425,21.72695547,1635.2,1634.9,0.0611]
[1693687720625,7.98424718,1635.0,1634.9,0.0611]
[1693687720822,9.0909093,1635.0,1634.9,0.0611]
[1693687721026,11.95807282,1635.0,1634.9,0.0611]
[1693687722223,11.96508682,1635.0,1634.9,0.0611]
[1693687725327,10.85973765,1635.0,1634.9,0.0611]
[1693687725632,11.16575386,1635.0,1634.9,0.0611]
[1693687725823,10.85973765,1635.0,1634.9,0.0611]
[1693687728224,11.16575259,1635.0,1634.9,0.0611]
[1693687728731,10.85973765,1635.0,1634.9,0.0611]
[1693687731637,11.1657489,1635.0,1634.9,0.0611]
[1693687732228,8.76238877,1635.0,1634.9,0.0611]
[1693687732529,11.1674874,1635.0,1634.9,0.0611]
[1693687732729,11.96511835,1635.0,1634.9,0.0611]
[1693687733831,11.96511835,1635.0,1634.9,1.6612031]
[1693687736837,8.76238877,1635.0,1634.9,1.6612031]
[1693687737636,11.16826279,1635.0,1634.9,1.6612031]
[1693687740338,11.96511835,1635.0,1634.9,0.0611]
[1693687744751,8.76238877,1635.0,1634.9,0.0611]
[1693687746651,12.77892929,1635.0,1634.9,0.0611]
[1693687747255,8.76238877,1635.0,1634.9,1.6612031]
[1693687747452,11.16850711,1635.0,1634.9,1.6612031]
[1693687750660,8.76238877,1635.0,1634.9,1.6612031]
[1693687752763,11.97054656,1635.0,1634.9,1.6612031]
[1693687753454,8.76238877,1635.0,1634.9,1.6612031]
[1693687753759,11.97054656,1635.0,1634.9,1.6612031]
[1693687754761,9.10338304,1635.0,1634.9,2.92812066]
[1693687754952,2.41367367,1635.0,1634.9,3.72957182]
[1693687755159,4.01801007,1635.0,1634.9,3.72957182]
[1693687755354,3.52116039,1635.0,1634.9,2.92992202]
[1693687757969,3.18016612,1635.0,1634.9,5.33147628]
[1693687758162,5.58686208,1635.0,1634.9,5.33147628]
[1693687758569,2.71969856,1635.0,1634.9,5.33147628]
[1693687760071,5.58686208,1635.0,1634.9,5.33147628]
[1693687760466,2.71969856,1635.0,1634.9,5.33147628]
[1693687761773,2.71992862,1635.0,1634.9,5.33147628]
[1693687762370,1.61163079,1635.0,1634.9,4.53233138]
[1693687763066,4.01855681,1635.0,1634.9,4.53233138]
[1693687763273,1.61163079,1635.0,1634.9,4.53233138]
[1693687764763,4.01855681,1635.0,1634.9,4.53233138]
[1693687766878,6.88572033,1635.0,1634.9,4.53233138]
[1693687767677,4.47879431,1635.0,1634.9,4.53233138]
[1693687770380,5.58708518,1635.0,1634.9,5.33360167]
[1693687771273,5.5869914,1635.0,1634.9,5.33352167]
[1693687771570,5.5869914,1635.0,1634.9,3.73132003]
[1693687773482,5.28100959,1635.0,1634.9,3.73132003]
[1693687773774,5.28100959,1635.0,1634.9,2.46440247]
[1693687774582,5.34220959,1635.0,1634.9,2.46440247]
[1693687774975,5.34220959,1635.0,1634.9,3.73132003]
[1693687777383,4.53974969,1635.0,1634.9,4.53242085]
[1693687780084,4.53974969,1635.0,1634.9,3.26550329]
[1693687784482,5.64818638,1635.0,1634.9,2.46416668]
[1693687784880,6.45034242,1635.0,1634.9,1.66330552]
[1693687786884,6.45034242,1635.0,1634.9,2.93022308]
[1693687788387,6.45034242,1635.0,1634.9,1.66330552]
[1693687789684,6.45034242,1635.0,1634.9,4.0666138]
[1693687789888,6.45034242,1635.0,1634.9,1.66330552]
[1693687792694,5.34261288,1635.0,1634.9,3.26551105]
[1693687799702,5.64860257,1635.0,1634.9,3.26551105]
[1693687800808,3.24136721,1635.0,1634.9,3.26551105]
[1693687801400,3.24136721,1635.0,1634.9,2.46645304]
[1693687801401,6.45034649,1635.0,1634.9,2.46645304]
[1693687802002,11.97134649,1635.0,1634.9,2.46645304]
[1693687802207,11.97134649,1635.0,1634.9,0.0611]
[1693687802407,11.97134649,1635.0,1634.9,2.46640068]
[1693687807714,11.97134649,1635.0,1634.9,4.06981297]
[1693687809617,11.97134649,1635.0,1634.9,5.33673053]
[1693687810717,11.97134649,1635.0,1634.9,4.06981297]
[1693687814026,11.97134649,1635.0,1634.9,5.33673053]
[1693687814630,11.17068924,1635.0,1634.9,4.53242861]
[1693687815125,8.30352572,1635.0,1634.9,4.53242861]
[1693687816228,11.17068924,1635.0,1634.9,4.53242861]
[1693687816528,11.17068924,1635.0,1634.9,3.26551105]
[1693687821233,9.60311419,1635.0,1634.9,4.53242861]
[1693687821626,7.19479216,1635.0,1634.9,1.32801756]
[1693687821930,4.08211419,1635.0,1634.9,4.53498056]
[1693687822724,2.47653603,1635.0,1634.9,4.53498056]
[1693687824633,5.34369955,1635.0,1634.9,3.268063]
[1693687824834,5.34369955,1635.0,1634.9,4.53498056]
[1693687825231,2.47653603,1635.0,1634.9,4.53498056]
[1693687825731,2.78252117,1635.0,1634.9,4.53498056]
[1693687825934,5.64968469,1635.0,1634.9,3.268063]
[1693687826138,5.34369955,1635.0,1634.9,3.268063]
[1693687826335,5.34369955,1635.0,1634.9,4.53498056]
[1693687827638,5.34369955,1635.0,1634.9,3.268063]
[1693687828039,5.34369955,1635.0,1634.9,4.53498056]
[1693687829441,5.34369955,1635.0,1634.9,3.268063]
[1693687829633,5.34369955,1635.0,1634.9,4.53498056]
[1693687829841,4.54108884,1635.0,1634.9,5.33353137]
[1693687831241,4.54108884,1635.0,1634.9,4.06661381]
[1693687831642,4.54108884,1635.0,1634.9,5.33353137]
[1693687837346,4.54108884,1635.0,1634.9,4.06661381]
[1693687837848,5.34369955,1635.0,1634.9,3.26810101]
[1693687841650,5.34369955,1635.0,1634.9,4.53501857]
[1693687841853,5.34369955,1635.0,1634.9,3.26810101]
[1693687844856,6.45033773,1635.0,1634.9,2.46622964]
[1693687847950,3.24135784,1635.0,1634.9,0.0611]
[1693687848155,6.45224864,1635.0,1634.9,3.73308822]
[1693687850761,6.45224864,1635.0,1634.9,2.46617066]
[1693687851355,6.45224864,1635.0,1634.9,3.73308822]
[1693687852366,6.45224864,1635.0,1634.9,2.46617066]
[1693687852966,6.14626832,1635.0,1634.9,0.0611]
[1693687853765,6.14626832,1635.0,1634.9,3.26786088]
[1693687853964,6.94915137,1635.0,1634.9,4.53477844]
[1693687854962,4.08198785,1635.0,1634.9,4.53477844]
[1693687855866,6.94915137,1635.0,1634.9,4.53477844]
[1693687856966,6.94915137,1635.0,1634.9,3.26786088]
[1693687858268,6.94915137,1635.0,1634.9,4.53477844]
[1693687859369,6.94915137,1635.0,1634.9,3.26786088]
[1693687859670,6.94915137,1635.0,1634.9,1.32801756]
[1693687859868,6.94915137,1635.0,1634.9,0.0611]
[1693687860065,6.45224547,1635.0,1634.9,2.46667308]
[1693687860270,2.78259034,1635.0,1634.9,4.53544833]
[1693687860567,5.64975386,1635.0,1634.9,4.53544833]
[1693687862367,2.78259034,1635.0,1634.9,4.53544833]
[1693687863162,5.64975386,1635.0,1634.9,4.53544833]
[1693687867074,4.54110694,1635.0,1634.9,5.33646867]
[1693687867966,1.67394342,1635.0,1634.9,5.33646867]
[1693687868372,4.54110694,1635.0,1634.9,5.33646867]
[1693687871974,1.67394342,1635.0,1634.9,5.33646867]
[1693687874480,4.54110694,1635.0,1634.9,5.33646867]
[1693687876580,1.67394342,1635.0,1634.9,5.33646867]
[1693687877681,1.67360138,1635.0,1634.9,5.33664088]
[1693687881883,4.5407649,1635.0,1634.9,5.33664088]
[1693687882187,5.34345859,1635.0,1634.9,4.53480336]
[1693687882372,5.34345859,1635.0,1634.9,3.2678858]
[1693687882772,5.34345859,1635.0,1634.9,4.53480336]
[1693687883484,2.47629507,1635.0,1634.9,4.53480336]
[1693687883985,5.34345859,1635.0,1634.9,4.53480336]
[1693687885480,2.47629507,1635.0,1634.9,4.53480336]
[1693687885786,5.34345859,1635.0,1634.9,4.53480336]
[1693687886480,5.34345859,1635.0,1634.9,5.02419864]
[1693687886884,5.34345859,1635.0,1634.9,3.75728108]
[1693687888386,5.34345859,1635.0,1634.9,5.02419864]
[1693687889387,5.34345859,1635.0,1634.9,3.75728108]
[1693687889786,5.34345859,1635.0,1634.9,5.02419864]
[1693687890289,4.5407897,1635.0,1634.9,5.82603616]
[1693687890788,4.5407897,1635.0,1634.9,5.33664088]
[1693687891582,1.67362618,1635.0,1634.9,5.33664088]
[1693687892888,1.61242618,1635.0,1634.9,5.33664088]
[1693687897290,2.41509507,1635.0,1634.9,4.53525109]
[1693687899089,5.28225859,1635.0,1634.9,4.53525109]
[1693687899291,2.41509507,1635.0,1634.9,4.53525109]
[1693687899791,2.41509507,1635.0,1634.9,1.32801756]
[1693687899985,4.02070784,1635.0,1634.9,5.33664088]
[1693687901293,4.02070784,1635.0,1634.9,5.33732043]
[1693687901294,4.02104152,1635.0,1634.9,5.33732043]
[1693687901989,4.02104152,1635.0,1634.9,10.85832043]
[1693687902388,4.02205638,1635.0,1634.9,10.85832043]
[1693687904484,1.61363987,1635.0,1634.9,10.85832043]
[1693687905190,0.00802886,1635.0,1634.9,6.84901756]
[1693687905595,0.00802886,1635.0,1634.9,16.658081]
[1693687906293,5.13636035,1635.2,1635.1,0.0611]
[1693687906494,1.60561101,1635.2,1635.1,5.33627628]
[1693687907793,14.42612752,1635.3,1635.1,5.33627628]
[1693687908190,14.42432998,1635.3,1635.2,3.20588825]
[1693687909203,12.01699199,1635.3,1635.2,3.20588825]
[1693687909396,7.12589199,1635.3,1635.2,3.26698825]
[1693687909592,7.12589199,1635.3,1635.2,8.78798825]
[1693687909593,1.60489199,1635.3,1635.2,8.78798825]
[1693687914399,1.60489199,1635.3,1635.2,5.5821]
[1693687914798,1.60489199,1635.3,1635.2,8.78798825]
[1693687915194,1.60489199,1635.3,1635.2,7.984421]
[1693687915397,1.60489199,1635.3,1635.2,8.78798825]
[1693687916399,1.60489199,1635.3,1635.2,7.9842582]
[1693687917291,1.61294654,1635.3,1635.2,7.9842582]
[1693687918303,1.61140112,1635.3,1635.2,7.98416357]
[1693687919299,0.00805455,1635.3,1635.2,7.98416357]
[1693687919904,0.00805455,1635.3,1635.2,5.5821]
[1693687920104,0.00805455,1635.3,1635.2,8.78485143]
[1693687920400,5.03091986,1635.4,1635.3,0.0611]
[1693687920703,5.33683506,1635.4,1635.3,2.92909053]
[1693687923409,5.33683506,1635.4,1635.3,1.32801756]
[1693687924409,5.03091986,1635.4,1635.3,1.32801756]
[1693687926208,5.03091986,1635.4,1635.3,2.92909053]
[1693687927610,5.03091986,1635.4,1635.3,3.72962578]
[1693687927611,2.6259,1635.4,1635.3,3.72962578]
[1693687931912,11.01406352,1635.4,1635.3,2.40160822]
[1693687932313,11.02182638,1635.4,1635.3,2.40160822]
[1693687935613,13.42684624,1635.4,1635.2,4.0630702]
[1693687935806,1.60258446,1635.3,1635.2,5.32998776]
[1693687939717,1.60258446,1635.3,1635.2,4.0630702]
[1693687940219,1.60258446,1635.3,1635.2,5.3302299]
[1693687940520,1.60258446,1635.3,1635.2,3.72962578]
[1693687942816,12.62441084,1635.4,1635.2,4.53076899]
[1693687943017,12.62441084,1635.4,1635.3,2.40125866]
[1693687945221,15.0294307,1635.4,1635.3,2.40125866]
[1693687946021,15.0294307,1635.4,1635.3,2.46235866]
[1693687948230,13.42684624,1635.4,1635.3,2.46235866]
[1693687949227,13.42684624,1635.4,1635.3,0.0611]
[1693687949732,14.53444003,1635.4,1635.3,1.66312937]
[1693687950331,14.53444003,1635.4,1635.3,4.06617343]
[1693687951434,14.53444003,1635.4,1635.3,2.46414406]
[1693687957738,13.73587938,1635.4,1635.3,3.26385143]
[1693687964841,14.53444003,1635.4,1635.3,3.26385143]
[1693687966739,14.53444003,1635.4,1635.3,4.53076899]
[1693687966933,11.32774688,1635.4,1635.3,4.53076899]
[1693687969844,11.32774688,1635.4,1635.3,3.26385143]
[1693687971246,14.53444003,1635.4,1635.3,3.26385143]
[1693687971441,11.32774688,1635.4,1635.3,3.26385143]
[1693687971746,14.53444003,1635.4,1635.3,3.26385143]
[1693687971947,11.32774688,1635.4,1635.3,3.26385143]
[1693687972444,14.53444003,1635.4,1635.3,3.26385143]
[1693687972845,14.53444003,1635.4,1635.3,2.46567423]
[1693687973941,11.32774688,1635.4,1635.3,2.46567423]
[1693687974242,14.53921112,1635.4,1635.3,2.46567423]
[1693687974442,11.32774688,1635.4,1635.3,2.46567423]
[1693687975450,14.53933723,1635.4,1635.3,2.46567423]
[1693687976250,11.32774688,1635.4,1635.3,2.46567423]
[1693687977452,14.53946915,1635.4,1635.3,3.73259179]
[1693687978253,14.53946915,1635.4,1635.3,2.46567423]
[1693687979954,13.73652608,1635.4,1635.3,3.26385143]
[1693687981552,13.73652608,1635.4,1635.3,4.53076899]
[1693687982254,13.43060558,1635.4,1635.3,4.53076899]
[1693687982455,13.73651999,1635.4,1635.3,4.53076899]
[1693687983256,13.43060558,1635.4,1635.3,4.53076899]
[1693687983555,10.56344206,1635.4,1635.3,4.53076899]
[1693687983855,10.56344206,1635.4,1635.3,1.32801756]
[1693687984055,10.56344206,1635.4,1635.3,4.53417604]
[1693687984253,13.43060558,1635.4,1635.3,0.0611]
[1693687984556,13.43060558,1635.4,1635.3,3.26718658]
[1693687984853,13.43060558,1635.4,1635.3,4.53410414]
[1693687986660,10.56344206,1635.4,1635.3,4.53410414]
[1693687987659,13.43060558,1635.4,1635.3,4.53410414]
[1693687987969,14.5394602,1635.4,1635.3,0.0611]
[1693687990260,14.5394602,1635.4,1635.3,3.26718658]
[1693687990662,14.5394602,1635.4,1635.3,0.0611]
[1693687991263,14.5394602,1635.4,1635.3,3.26718658]
[1693687992565,14.5394602,1635.4,1635.3,0.0611]
[1693687992865,14.5394602,1635.4,1635.3,1.32801756]
[1693687993163,14.5394602,1635.4,1635.3,4.53410414]
[1693687993865,14.5394602,1635.4,1635.3,1.32801756]
[1693687994865,14.5394602,1635.4,1635.3,4.53410414]
[1693687995053,13.43009679,1635.4,1635.3,4.53410414]
[1693687996260,10.56293327,1635.4,1635.3,4.53410414]
[1693687997665,13.43009679,1635.4,1635.3,4.53410414]
[1693687999265,10.56293327,1635.4,1635.3,4.53410414]
[1693688002867,13.43009679,1635.4,1635.3,4.53410414]
[1693688003363,13.73600674,1635.4,1635.3,4.53410414]
[1693688004067,13.43009679,1635.4,1635.3,4.53410414]
[1693688005770,13.43009679,1635.4,1635.3,3.26718658]
[1693688010163,14.53945726,1635.4,1635.3,2.46533358]
[1693688012274,14.53945726,1635.4,1635.3,3.73225114]
[1693688012475,14.53945726,1635.4,1635.3,2.46533358]
[1693688017274,13.43023951,1635.4,1635.3,3.20608658]
[1693688017570,20.06048364,1635.4,1635.3,2.40476967]
[1693688017775,24.34928187,1635.4,1635.3,1.60339595]
[1693688017980,20.85712781,1635.4,1635.3,1.60339595]
[1693688019672,20.05827329,1635.4,1635.3,1.60339595]
[1693688019873,24.34928187,1635.4,1635.3,1.60339595]
[1693688020074,20.85712781,1635.4,1635.3,1.60339595]
[1693688020575,20.05782143,1635.4,1635.3,1.60339595]
[1693688020774,23.54997549,1635.4,1635.3,1.60339595]
[1693688021572,23.54997549,1635.4,1635.2,4.00816562]
[1693688021767,11.30593153,1635.3,1635.2,1.60339595]
[1693688022474,11.31368583,1635.3,1635.2,1.60339595]